[Event "15th Arad Open 2022"]
[Site "Arad"]
[Date "2022.08.09"]
[Round "2.14"]
[White "Matasaru, Stephanie"]
[Black "Coicev, Matei-Andrei"]
[Result "0-1"]
[ECO "B01"]
[WhiteElo "1885"]
[BlackElo "2087"]
[Annotator "RC"]
[PlyCount "128"]
[EventDate "2022.08.08"]
[EventType "swiss"]
[EventCountry "ROU"]
[SourceTitle "playchess.com"]
[Source "ChessBase"]
[SourceQuality "1"]
[TimeControl "5400+30"]

1. e4 {[%emt 0:00:02]} d5 {[%emt 0:00:36]} 2. exd5 {[%emt 0:00:12]} Nf6 {[%emt 0:00:32]} 3. Nf3 {[%emt 0:00:35]} Bg4 {[%emt 0:00:41]} 4. Be2 {[%emt 0:00:15]} Qxd5 {[%emt 0:00:40]} 5. d4 {[%emt 0:03:23]} e6 {[%emt 0:01:29]} 6. h3 {[%emt 0:02:17]} Bxf3 7. Bxf3 {[%emt 0:00:06]} Qa5+ {[%emt 0:05:23]} 8. c3 {[%emt 0:02:15]} c6 {[%emt 0:00:39]} 9. O-O {[%emt 0:00:59]} Be7 {[%emt 0:00:43]} 10. Nd2 {[%emt 0:00:52]} O-O {[%emt 0:00:58]} 11. Nc4 {[%emt 0:01:23]} Qc7 {[%emt 0:01:14]} 12. Ne5 {[%emt 0:09:41]} Nbd7 {[%emt 0:02:39]} 13. Bf4 {[%emt 0:01:23]} Bd6 {[%emt 0:01:07]} 14. Re1 {[%emt 0:03:26]} Rfd8 {[%emt 0:04:55]} 15. Qe2 {[%emt 0:04:15]} Nd5 {[%emt 0:04:19]} 16. Bd2 {[%emt 0:09:08]} Nxe5 {[%emt 0:08:24]} 17. dxe5 {[%emt 0:00:05]} Be7 {[%emt 0:02:18]} 18. a3 {[%emt 0:08:33]} Rd7 {[%emt 0:04:34]} 19. Rad1 {[%emt 0:08:31]} Rad8 {[%emt 0:03:57]} 20. Be4 {[%emt 0:01:15]} Nb6 {[%emt 0:04:03]} 21. Bc2 {[%emt 0:02:47]} g6 {[%emt 0:04:56]} 22. Bh6 {[%emt 0:07:02]} Rxd1 {[%emt 0:01:15]} 23. Bxd1 {[%emt 0:01:57]} Qd7 {[%emt 0:02:55]} 24. Bb3 {[%emt 0:00:46]} c5 {[%emt 0:05:08]} 25. Rd1 {[%emt 0:08:18]} Qc6 {[%emt 0:01:50]} 26. Rxd8+ {[%emt 0:00:57]} Bxd8 {[%emt 0:00:00]} 27. c4 {[%emt 0:01:01]} Nc8 {[%emt 0:02:57]} 28. Qd1 {[%emt 0:01:30]} Qc7 {[%emt 0:02:29]} 29. Bf4 {[%emt 0:03:40]} Ne7 {[%emt 0:01:43]} 30. Ba4 {[%emt 0:02:22]} Nf5 {[%emt 0:02:29]} 31. Qd7 {[%emt 0:01:57]} Qxd7 {[%emt 0:02:11]} 32. Bxd7 {[%emt 0:00:02]} Bc7 {[%emt 0:00:19]} 33. b4 {[%emt 0:01:31]} b6 {[%emt 0:01:12]} 34. bxc5 {[%emt 0:00:06]} bxc5 {[%emt 0:00:03]} 35. g4 {[%emt 0:01:04]} Nd4 {[%emt 0:00:13]} 36. Bg3 {[%emt 0:00:36]} Bxe5 {[%emt 0:00:42]} 37. Bxe5 {[%emt 0:00:26]} Nf3+ {[%emt 0:00:07]} 38. Kg2 {[%emt 0:00:24]} Nxe5 {[%emt 0:00:03]} 39. Bb5 {[%emt 0:00:04]} g5 {[%emt 0:02:14]} 40. Kg3 {[%emt 0:00:00]} Ng6 {[%emt 0:00:00]} 41. a4 {[%emt 0:00:00]} Kg7 {[%emt 0:00:00]} 42. Kf3 {[%emt 0:00:00]} Kf6 {[%emt 0:00:00]} 43. Ke4 {[%emt 0:00:00]} h6 {[%emt 0:00:00]} 44. a5 {[%emt 0:00:00]} Nf4 {[%emt 0:00:00]} 45. h4 {[%emt 0:00:00]} Ke7 {[%emt 0:00:00]} 46. hxg5 {[%emt 0:00:00]} hxg5 {[%emt 0:00:00]} 47. f3 {[%emt 0:00:00]} Kd6 {[%emt 0:00:26]} 48. a6 {[%emt 0:00:00]} f6 {[%emt 0:02:33]} 49. Be8 {[%emt 0:00:00]} Ne2 {[%emt 0:02:28]} 50. Ke3 {[%emt 0:00:00]} Nf4 {[%emt 0:01:33]} 51. Ke4 {[%emt 0:00:00]} Kc7 {[%emt 0:00:30]} 52. Bb5 {[%emt 0:00:00]} Kb6 {[%emt 0:00:34]} 53. Ke3 {[%emt 0:00:00]} Ka5 {[%emt 0:00:11]} 54. Kd2 {[%emt 0:00:23]} Kb4 {[%emt 0:00:20]} 55. Kc2 {[%emt 0:00:22]} Ng6 {[%emt 0:04:41]} 56. Bd7 {[%emt 0:01:10]} Ne5 {[%emt 0:01:41]} 57. Bxe6 {[%emt 0:00:17]} Nxc4 {[%emt 0:00:35]} 58. Kd3 {[%emt 0:00:35]} Nd6 {[%emt 0:00:10]} 59. Ke3 {[%emt 0:02:10]} Kc3 {[%emt 0:00:30]} 60. f4 {[%emt 0:00:12]} c4 {[%emt 0:00:58]} 61. fxg5 {[%emt 0:00:15]} fxg5 {[%emt 0:00:09]} 62. Bd7 {[%emt 0:00:47]} Kb2 {[%emt 0:02:02]} 63. Ba4 {[%emt 0:01:03]} c3 {[%emt 0:00:41]} 64. Kd3 {[%emt 0:00:03]} Nb5 {[%emt 0:03:29]} 0-1

[Event "15th Arad Open 2022"]
[Site "Arad"]
[Date "2022.08.09"]
[Round "2.15"]
[White "Herczeg, Marcell"]
[Black "Batagan, Ilinca-Petra"]
[Result "1-0"]
[ECO "C13"]
[WhiteElo "2044"]
[BlackElo "1932"]
[Annotator "RC"]
[PlyCount "77"]
[EventDate "2022.08.08"]
[EventType "swiss"]
[EventCountry "ROU"]
[SourceTitle "playchess.com"]
[Source "ChessBase"]
[SourceQuality "1"]
[TimeControl "5400+30"]

1. d4 {[%emt 0:00:13]} Nf6 {[%emt 0:00:57]} 2. Nc3 {[%emt 0:00:43]} d5 {[%emt 0:01:20]} 3. Bg5 {[%emt 0:00:44]} e6 {[%emt 0:01:04]} 4. e4 {[%emt 0:04:24]} dxe4 {[%emt 0:00:53]} 5. Nxe4 {[%emt 0:01:52]} Be7 {[%emt 0:00:22]} 6. Bxf6 Bxf6 {[%emt 0:00:23]} 7. Nf3 {[%emt 0:11:35]} O-O {[%emt 0:03:08]} 8. c3 {[%emt 0:06:09]} Nd7 {[%emt 0:02:46]} 9. Bd3 {[%emt 0:03:06]} b6 {[%emt 0:03:31]} 10. Qc2 {[%emt 0:04:18]} Bb7 {[%emt 0:01:58]} 11. O-O-O {[%emt 0:02:09]} Qe7 {[%emt 0:02:49]} 12. h4 {[%emt 0:09:07]} Rac8 {[%emt 0:09:14]} 13. Kb1 {[%emt 0:20:16]} g6 {[%emt 0:07:55]} 14. h5 {[%emt 0:12:42]} c5 {[%emt 0:02:04]} 15. hxg6 {[%emt 0:06:05]} fxg6 {[%emt 0:01:56]} 16. Qd2 {[%emt 0:01:46]} Bxe4 17. Bxe4 {[%emt 0:00:23]} cxd4 {[%emt 0:05:33]} 18. Nxd4 {[%emt 0:00:30]} Bxd4 19. Qxd4 {[%emt 0:01:06]} Nc5 {[%emt 0:07:23]} 20. Bxg6 {[%emt 0:08:19]} Rcd8 {[%emt 0:02:26]} 21. Bxh7+ {[%emt 0:00:16]} Qxh7+ 22. Rxh7 {[%emt 0:00:07]} Rxd4 23. cxd4 {[%emt 0:00:02]} Kxh7 {[%emt 0:01:59]} 24. dxc5 {[%emt 0:00:04]} bxc5 {[%emt 0:00:07]} 25. Re1 {[%emt 0:01:53]} Rxf2 {[%emt 0:00:32]} 26. Rxe6 {[%emt 0:00:07]} Rxg2 {[%emt 0:00:12]} 27. Rc6 {[%emt 0:00:31]} Rg7 {[%emt 0:02:33]} 28. Rxc5 {[%emt 0:00:06]} Kg6 {[%emt 0:00:53]} 29. b4 {[%emt 0:00:47]} Kf6 {[%emt 0:00:59]} 30. Kb2 {[%emt 0:00:06]} Ke6 {[%emt 0:00:53]} 31. Kb3 {[%emt 0:00:22]} Kd6 {[%emt 0:00:36]} 32. Ka4 {[%emt 0:00:13]} Rb7 {[%emt 0:09:29]} 33. Ka5 {[%emt 0:00:23]} Kd7 {[%emt 0:02:15]} 34. Rb5 {[%emt 0:04:23]} Kc7 {[%emt 0:04:48]} 35. Rxb7+ {[%emt 0:00:22]} Kxb7 {[%emt 0:00:01]} 36. Kb5 {[%emt 0:00:08]} Kb8 {[%emt 0:03:58]} 37. Ka6 {[%emt 0:00:14]} Ka8 {[%emt 0:00:01]} 38. a3 {[%emt 0:01:34]} Kb8 {[%emt 0:00:08]} 39. a4 {[%emt 0:00:23]} 1-0

[Event "15th Arad Open 2022"]
[Site "Arad"]
[Date "2022.08.09"]
[Round "2.16"]
[White "Tablan, Matei-Christian"]
[Black "Pauwels, Xander"]
[Result "1/2-1/2"]
[ECO "B21"]
[WhiteElo "1928"]
[BlackElo "2040"]
[Annotator "RC"]
[PlyCount "68"]
[EventDate "2022.08.08"]
[EventType "swiss"]
[EventCountry "ROU"]
[SourceTitle "playchess.com"]
[Source "ChessBase"]
[SourceQuality "1"]
[TimeControl "5400+30"]

1. e4 {[%emt 0:00:03]} c5 {[%emt 0:03:25]} 2. Be2 {[%emt 0:00:35]} Nc6 {[%emt 0:02:24]} 3. f4 {[%emt 0:00:18]} d6 {[%emt 0:00:52]} 4. Nf3 {[%emt 0:00:16]} g6 {[%emt 0:02:07]} 5. O-O {[%emt 0:01:37]} Bg7 {[%emt 0:00:07]} 6. c3 {[%emt 0:01:45]} e6 {[%emt 0:14:18]} 7. Na3 {[%emt 0:08:12]} Nge7 {[%emt 0:03:50]} 8. Kh1 {[%emt 0:18:57]} a6 {[%emt 0:10:02]} 9. Nc2 {[%emt 0:10:36]} d5 {[%emt 0:14:19]} 10. d3 {[%emt 0:05:02]} b5 {[%emt 0:09:51]} 11. Qe1 {[%emt 0:03:47]} Rb8 {[%emt 0:09:27]} 12. Be3 {[%emt 0:05:04]} d4 {[%emt 0:00:30]} 13. cxd4 {[%emt 0:00:30]} Nxd4 {[%emt 0:00:30]} 14. Nfxd4 {[%emt 0:00:30]} cxd4 {[%emt 0:00:30]} 15. Bg1 {[%emt 0:00:30]} Nc6 {[%emt 0:00:30]} 16. Nb4 {[%emt 0:00:30]} Ne7 {[%emt 0:00:30]} 17. Bf3 {[%emt 0:00:30]} O-O {[%emt 0:00:30]} 18. e5 {[%emt 0:00:30]} f6 {[%emt 0:00:30]} 19. exf6 {[%emt 0:00:30]} Bxf6 {[%emt 0:00:30]} 20. Nxa6 {[%emt 0:00:30]} Rb6 {[%emt 0:00:30]} 21. Nb4 {[%emt 0:00:30]} Qd6 {[%emt 0:00:30]} 22. g3 {[%emt 0:00:30]} e5 {[%emt 0:00:30]} 23. fxe5 {[%emt 0:00:30]} Bxe5 {[%emt 0:00:30]} 24. Bg2 {[%emt 0:00:30]} Rxf1 {[%emt 0:00:30]} 25. Bxf1 {[%emt 0:00:30]} Nf5 {[%emt 0:00:30]} 26. Bg2 {[%emt 0:00:30]} Ne7 {[%emt 0:25:48]} 27. Bf1 {[%emt 0:37:27]} Nf5 {[%emt 0:00:00]} 28. Bg2 {[%emt 0:00:33]} Be6 {[%emt 0:00:00]} 29. Rc1 {[%emt 0:01:13]} Bxg3 {[%emt 0:00:25]} 30. hxg3 {[%emt 0:02:31]} Nxg3+ {[%emt 0:00:07]} 31. Kh2 {[%emt 0:00:02]} Ne2+ {[%emt 0:00:18]} 32. Kh1 {[%emt 0:00:03]} Ng3+ {[%emt 0:01:11]} 33. Kh2 {[%emt 0:00:04]} Ne2+ {[%emt 0:00:02]} 34. Kh1 {[%emt 0:00:03]} Ng3+ {[%emt 0:01:16]} 1/2-1/2

[Event "15th Arad Open 2022"]
[Site "Arad"]
[Date "2022.08.09"]
[Round "2.17"]
[White "Moerman, Thomas"]
[Black "Tudor, Henry Edward"]
[Result "1/2-1/2"]
[ECO "E05"]
[WhiteElo "2026"]
[BlackElo "1984"]
[Annotator "RC"]
[PlyCount "46"]
[EventDate "2022.08.08"]
[EventType "swiss"]
[EventCountry "ROU"]
[SourceTitle "playchess.com"]
[Source "ChessBase"]
[SourceQuality "1"]
[TimeControl "5400+30"]

1. d4 {[%emt 0:02:40]} Nf6 {[%emt 0:00:25]} 2. c4 {[%emt 0:00:24]} e6 {[%emt 0:00:17]} 3. g3 {[%emt 0:00:08]} d5 {[%emt 0:00:38]} 4. Nf3 {[%emt 0:00:25]} Be7 {[%emt 0:00:24]} 5. Bg2 {[%emt 0:01:18]} O-O {[%emt 0:00:45]} 6. O-O {[%emt 0:00:11]} dxc4 {[%emt 0:00:41]} 7. Ne5 {[%emt 0:00:07]} Nc6 {[%emt 0:01:05]} 8. Bxc6 {[%emt 0:00:07]} bxc6 {[%emt 0:00:08]} 9. Nxc6 {[%emt 0:00:06]} Qd6 {[%emt 0:02:35]} 10. Nxe7+ {[%emt 0:01:40]} Qxe7 {[%emt 0:00:02]} 11. Qa4 {[%emt 0:00:22]} Qd6 {[%emt 0:04:32]} 12. Rd1 {[%emt 0:05:38]} Qa6 {[%emt 0:07:21]} 13. Nc3 {[%emt 0:07:12]} Qxa4 {[%emt 0:06:10]} 14. Nxa4 {[%emt 0:00:18]} Rb8 {[%emt 0:01:26]} 15. Nc5 {[%emt 0:10:54]} Nd7 {[%emt 0:01:38]} 16. b4 {[%emt 0:10:01]} Nxc5 {[%emt 0:05:32]} 17. bxc5 {[%emt 0:02:02]} Ba6 {[%emt 0:00:58]} 18. Rd2 {[%emt 0:16:35]} Rb7 {[%emt 0:18:33]} 19. f3 {[%emt 0:08:28]} Rfb8 {[%emt 0:01:15]} 20. Kf2 {[%emt 0:00:19]} f6 {[%emt 0:05:22]} 21. e4 {[%emt 0:11:33]} Rb4 {[%emt 0:02:41]} 22. Ba3 {[%emt 0:01:46]} Ra4 {[%emt 0:14:06]} 23. Bb2 {[%emt 0:00:27]} Rb5 {[%emt 0:00:44]} 1/2-1/2

[Event "15th Arad Open 2022"]
[Site "Arad"]
[Date "2022.08.09"]
[Round "2.18"]
[White "Paraschiv, Petronela-Alexandra"]
[Black "Sedlak, Nikola"]
[Result "0-1"]
[ECO "A49"]
[WhiteElo "1867"]
[BlackElo "2480"]
[Annotator "RC"]
[PlyCount "68"]
[EventDate "2022.08.08"]
[EventType "swiss"]
[EventCountry "ROU"]
[SourceTitle "playchess.com"]
[Source "ChessBase"]
[SourceQuality "1"]
[TimeControl "5400+30"]

1. c4 {[%emt 0:00:02]} Nf6 {[%emt 0:00:23]} 2. Nf3 {[%emt 0:00:30]} g6 {[%emt 0:00:30]} 3. b3 {[%emt 0:00:30]} Bg7 {[%emt 0:00:30]} 4. Bb2 {[%emt 0:00:30]} O-O {[%emt 0:00:30]} 5. g3 {[%emt 0:00:30]} d6 {[%emt 0:00:30]} 6. d4 {[%emt 0:00:30]} e5 {[%emt 0:00:30]} 7. dxe5 {[%emt 0:00:30]} Nfd7 {[%emt 0:00:30]} 8. Bg2 {[%emt 0:00:30]} Nc6 {[%emt 0:00:30]} 9. O-O {[%emt 0:00:30]} dxe5 {[%emt 0:00:30]} 10. e3 {[%emt 0:00:30]} Re8 {[%emt 0:00:30]} 11. Nc3 {[%emt 0:00:30]} e4 {[%emt 0:00:30]} 12. Nd4 {[%emt 0:00:30]} Nxd4 {[%emt 0:00:30]} 13. exd4 {[%emt 0:00:30]} f5 {[%emt 0:00:30]} 14. Ne2 {[%emt 0:00:30]} Nc5 {[%emt 0:00:30]} 15. Rb1 {[%emt 0:00:30]} Nd3 {[%emt 0:00:30]} 16. Bc3 {[%emt 0:00:30]} c6 {[%emt 0:00:30]} 17. Qc2 {[%emt 0:00:30]} f4 {[%emt 0:00:30]} 18. f3 {[%emt 0:00:30]} exf3 {[%emt 0:00:30]} 19. Bxf3 {[%emt 0:00:30]} Bf5 {[%emt 0:00:30]} 20. Qd1 {[%emt 0:00:30]} Qe7 {[%emt 0:00:30]} 21. Bd2 {[%emt 0:00:30]} g5 {[%emt 0:00:30]} 22. gxf4 {[%emt 0:00:30]} Nxf4 {[%emt 0:00:30]} 23. Bxf4 {[%emt 0:00:30]} Bxb1 {[%emt 0:00:30]} 24. Qxb1 {[%emt 0:00:30]} gxf4 {[%emt 0:00:30]} 25. Kh1 {[%emt 0:00:30]} Kh8 {[%emt 0:00:30]} 26. d5 {[%emt 0:00:30]} cxd5 {[%emt 0:00:30]} 27. cxd5 {[%emt 0:00:30]} Be5 {[%emt 0:00:30]} 28. Qe4 {[%emt 0:00:30]} Qf6 {[%emt 0:00:30]} 29. Qb4 {[%emt 0:00:30]} Re7 {[%emt 0:00:30]} 30. Rc1 {[%emt 0:00:30]} Rae8 {[%emt 0:00:30]} 31. Rc4 {[%emt 0:00:30]} Bd6 {[%emt 0:00:30]} 32. Qd2 {[%emt 0:00:30]} Re3 {[%emt 0:00:30]} 33. Ng1 {[%emt 0:00:30]} Re1 {[%emt 0:00:30]} 34. Bh5 {[%emt 0:00:30]} Qa1 {[%emt 0:00:30]} 0-1

[Event "15th Arad Open 2022"]
[Site "Arad"]
[Date "2022.08.09"]
[Round "2.19"]
[White "Tablan, Andrei-Damian"]
[Black "Paraschiv, Paul-Alexandru"]
[Result "1/2-1/2"]
[ECO "C18"]
[WhiteElo "1784"]
[BlackElo "2181"]
[Annotator "RC"]
[PlyCount "95"]
[EventDate "2022.08.08"]
[EventType "swiss"]
[EventCountry "ROU"]
[SourceTitle "playchess.com"]
[Source "ChessBase"]
[SourceQuality "1"]
[TimeControl "5400+30"]

1. e4 {[%emt 0:00:07]} e6 {[%emt 0:00:20]} 2. d4 {[%emt 0:00:34]} d5 {[%emt 0:00:07]} 3. Nc3 {[%emt 0:00:22]} Bb4 {[%emt 0:01:45]} 4. e5 {[%emt 0:01:47]} c5 {[%emt 0:00:06]} 5. a3 {[%emt 0:00:09]} Bxc3+ {[%emt 0:00:06]} 6. bxc3 {[%emt 0:00:06]} Qa5 {[%emt 0:00:03]} 7. Bd2 {[%emt 0:03:37]} Qa4 {[%emt 0:00:11]} 8. Qb1 {[%emt 0:12:20]} c4 {[%emt 0:04:21]} 9. f4 {[%emt 0:02:51]} Ne7 {[%emt 0:01:51]} 10. Nf3 {[%emt 0:00:22]} Nbc6 {[%emt 0:00:06]} 11. Be2 {[%emt 0:01:28]} h6 {[%emt 0:00:14]} 12. O-O {[%emt 0:01:49]} b6 {[%emt 0:00:05]} 13. Nh4 {[%emt 0:08:12]} Bd7 {[%emt 0:00:50]} 14. g3 {[%emt 0:01:05]} O-O-O {[%emt 0:00:24]} 15. Ng2 {[%emt 0:02:03]} Qa5 {[%emt 0:00:48]} 16. Qe1 {[%emt 0:02:18]} Nf5 {[%emt 0:00:27]} 17. Bg4 {[%emt 0:01:10]} Nfe7 {[%emt 0:01:59]} 18. Ne3 {[%emt 0:01:39]} h5 {[%emt 0:00:40]} 19. Bh3 {[%emt 0:07:09]} g6 {[%emt 0:00:33]} 20. Bg2 {[%emt 0:02:17]} Nf5 {[%emt 0:00:06]} 21. Nxf5 gxf5 {[%emt 0:00:06]} 22. h4 {[%emt 0:01:16]} Rdg8 {[%emt 0:00:43]} 23. Kh2 {[%emt 0:00:18]} Rg7 {[%emt 0:00:13]} 24. Bf3 {[%emt 0:01:12]} Ne7 {[%emt 0:01:08]} 25. Qb1 {[%emt 0:02:41]} Qb5 {[%emt 0:00:56]} 26. Qb4 {[%emt 0:01:24]} Qxb4 {[%emt 0:01:21]} 27. cxb4 {[%emt 0:00:08]} Ba4 {[%emt 0:00:06]} 28. c3 {[%emt 0:00:14]} Bc2 {[%emt 0:00:21]} 29. Rg1 {[%emt 0:01:34]} Kb7 {[%emt 0:02:47]} 30. Be3 {[%emt 0:01:59]} a6 {[%emt 0:00:36]} 31. Bd2 {[%emt 0:00:49]} Kc6 {[%emt 0:01:15]} 32. a4 {[%emt 0:06:51]} Be4 {[%emt 0:00:18]} 33. Be2 {[%emt 0:00:37]} Rhg8 {[%emt 0:02:07]} 34. Be3 {[%emt 0:09:07]} Ng6 {[%emt 0:01:04]} 35. Kh3 {[%emt 0:00:47]} Rh7 {[%emt 0:02:59]} 36. Ra2 {[%emt 0:01:55]} f6 {[%emt 0:03:07]} 37. Raa1 {[%emt 0:01:27]} Nh8 {[%emt 0:01:27]} 38. Kh2 {[%emt 0:01:44]} Nf7 {[%emt 0:00:06]} 39. Kh3 {[%emt 0:02:48]} Nh6 {[%emt 0:04:48]} 40. Rac1 {[%emt 0:00:00]} Kd7 {[%emt 0:00:00]} 41. Ra1 {[%emt 0:00:00]} Ke7 {[%emt 0:00:00]} 42. a5 {[%emt 0:00:00]} b5 {[%emt 0:00:00]} 43. Kh2 {[%emt 0:03:13]} Rg4 {[%emt 0:00:00]} 44. Rae1 {[%emt 0:00:55]} Rhg7 {[%emt 0:00:00]} 45. Kh3 {[%emt 0:02:51]} Nf7 {[%emt 0:00:00]} 46. Bxg4 fxg4+ {[%emt 0:00:00]} 47. Kh2 {[%emt 0:00:56]} Bf5 {[%emt 0:00:00]} 48. Bd2 {[%emt 0:00:48]} 1/2-1/2

[Event "15th Arad Open 2022"]
[Site "Arad"]
[Date "2022.08.09"]
[Round "2.20"]
[White "Mihalca, Imre-Gheorghe"]
[Black "Oltean, Cristian-Daniel"]
[Result "0-1"]
[ECO "A40"]
[WhiteElo "1558"]
[BlackElo "2158"]
[Annotator "RC"]
[PlyCount "95"]
[EventDate "2022.08.08"]
[EventType "swiss"]
[EventCountry "ROU"]
[SourceTitle "playchess.com"]
[Source "ChessBase"]
[SourceQuality "1"]
[TimeControl "5400+30"]

1. Nf3 {[%emt 0:02:35]} g6 {[%emt 0:00:38]} 2. d4 {[%emt 0:00:53]} Bg7 {[%emt 0:00:10]} 3. e3 {[%emt 0:00:17]} f5 {[%emt 0:01:17]} 4. Nbd2 {[%emt 0:05:16]} Nf6 {[%emt 0:00:46]} 5. Be2 {[%emt 0:00:23]} O-O {[%emt 0:00:58]} 6. c4 {[%emt 0:01:51]} d6 {[%emt 0:01:22]} 7. O-O {[%emt 0:00:37]} c6 {[%emt 0:07:54]} 8. Qc2 {[%emt 0:06:30]} Qc7 {[%emt 0:08:09]} 9. b3 {[%emt 0:01:10]} e5 {[%emt 0:02:25]} 10. dxe5 {[%emt 0:02:21]} dxe5 {[%emt 0:00:12]} 11. Bb2 {[%emt 0:00:04]} e4 {[%emt 0:05:28]} 12. Ne1 {[%emt 0:06:37]} c5 {[%emt 0:07:53]} 13. g3 {[%emt 0:01:57]} Nc6 {[%emt 0:04:13]} 14. a3 {[%emt 0:02:05]} Be6 {[%emt 0:09:47]} 15. Ng2 {[%emt 0:01:51]} Rad8 {[%emt 0:07:59]} 16. Nf4 {[%emt 0:07:33]} Bf7 {[%emt 0:01:05]} 17. Rad1 {[%emt 0:18:28]} Ne5 {[%emt 0:03:57]} 18. Bxe5 Qxe5 {[%emt 0:00:14]} 19. Nb1 {[%emt 0:10:36]} g5 {[%emt 0:02:25]} 20. Nd5 {[%emt 0:02:44]} Nxd5 21. cxd5 {[%emt 0:00:38]} b6 {[%emt 0:09:25]} 22. Rd2 {[%emt 0:02:21]} Rxd5 {[%emt 0:09:14]} 23. Bc4 {[%emt 0:02:41]} Rxd2 {[%emt 0:00:42]} 24. Bxf7+ {[%emt 0:00:16]} Rxf7 {[%emt 0:02:27]} 25. Qxd2 {[%emt 0:00:08]} Bf6 {[%emt 0:01:29]} 26. Rd1 {[%emt 0:00:51]} Rf8 {[%emt 0:01:48]} 27. Qd5+ {[%emt 0:03:09]} Qxd5 {[%emt 0:00:18]} 28. Rxd5 {[%emt 0:00:53]} Rd8 {[%emt 0:00:45]} 29. Rxd8+ {[%emt 0:05:52]} Bxd8 {[%emt 0:00:11]} 30. Kf1 {[%emt 0:00:04]} Kf7 {[%emt 0:00:22]} 31. Ke2 {[%emt 0:00:22]} Bf6 {[%emt 0:00:57]} 32. f3 {[%emt 0:00:58]} exf3+ {[%emt 0:01:02]} 33. Kxf3 {[%emt 0:00:20]} b5 {[%emt 0:02:37]} 34. e4 {[%emt 0:03:22]} c4 {[%emt 0:01:13]} 35. a4 {[%emt 0:04:42]} cxb3 {[%emt 0:02:38]} 36. axb5 {[%emt 0:00:02]} Ke6 {[%emt 0:00:19]} 37. exf5+ {[%emt 0:01:22]} Kxf5 {[%emt 0:00:07]} 38. g4+ {[%emt 0:00:05]} Ke5 {[%emt 0:00:10]} 39. b6 {[%emt 0:01:49]} axb6 {[%emt 0:00:12]} 40. Ke3 {[%emt 0:00:00]} Kd5 {[%emt 0:00:00]} 41. Kd3 {[%emt 0:00:00]} Kc5 {[%emt 0:00:00]} 42. Nd2 {[%emt 0:00:00]} Kb4 {[%emt 0:00:00]} 43. Nb1 {[%emt 0:00:00]} b2 {[%emt 0:00:00]} 44. Kc2 {[%emt 0:00:00]} Kc4 {[%emt 0:00:00]} 45. Na3+ {[%emt 0:00:00]} Kd4 {[%emt 0:00:00]} 46. Kd2 {[%emt 0:00:00]} Ke4 {[%emt 0:00:00]} 47. Ke2 {[%emt 0:00:00]} Kf4 {[%emt 0:00:00]} 48. Nb1 {[%emt 0:10:47]} 0-1